fUSD/lending_fUSD_20240428
["ID","MTS","AMOUNT","RATE_DAILY","PERIOD"]
[25830,1714330259424,-604.82,0.00011232,2]
[25831,1714330259433,-772.02,0.00011232,2]
[25832,1714330259442,-500.0,0.00011232,2]
[25833,1714330259453,-500.0,0.00011232,2]
[25835,1714330259472,-500.0,0.00011232,2]
[25837,1714330259493,-500.0,0.00011232,2]
[25839,1714330259512,-501.27011656,0.00011232,2]
[25841,1714330259531,-500.0,0.00011232,2]
[25843,1714330259550,-500.0,0.00011232,2]
[25845,1714330259568,-503.52587278,0.00011232,2]
[25847,1714330259587,-500.0,0.00011232,2]
[25849,1714330259606,-502.27563299,0.00011232,2]
[25851,1714330259625,-500.27706882,0.00011232,2]
[25853,1714330259646,-500.0,0.00011232,2]
[25855,1714330259665,-720.48,0.00011232,2]
[25857,1714330259684,-500.0,0.00011232,2]
[25859,1714330259702,-500.0,0.00011232,2]
[25860,1714330259712,-500.0,0.00011232,2]
[25861,1714330259721,-500.0,0.00011232,2]
[25862,1714330259731,-500.0,0.00011232,2]
[25863,1714330259741,-500.0,0.00011232,2]
[25865,1714330259759,-500.0,0.00011232,2]
[25867,1714330259778,-665.55,0.00011232,2]
[25869,1714330259797,-236.86132489,0.00011232,2]
[25871,1714330259816,-500.0,0.00011232,2]
[25873,1714330259835,-1257.71,0.00011232,2]
[25875,1714330259854,-502.73215772,0.00011232,2]
[25877,1714330259873,-686.89,0.00011232,2]
[25878,1714330259883,-500.0,0.00011232,2]
[25879,1714330259892,-500.0,0.00011232,2]
[25880,1714330259902,-500.0,0.00011232,2]
[25881,1714330259911,-500.0,0.00011232,2]
[25882,1714330259921,-500.0,0.00011232,2]
[25883,1714330259930,-500.0,0.00011232,2]
[25884,1714330259940,-500.0,0.00011232,2]
[25885,1714330259950,-500.0,0.00011232,2]
[25887,1714330259969,-500.0,0.00011232,2]
[25889,1714330259989,-212.61,0.00011232,2]
[25891,1714330260011,-558.15,0.00011232,2]
[25893,1714330260029,-500.0,0.00011232,2]
[25895,1714330260048,-500.0,0.00011232,2]
[25896,1714330260058,-534.16,0.00011232,2]
[25897,1714330260067,-611.54,0.00011232,2]
[25898,1714330260077,-912.18,0.00011232,2]
[25899,1714330260089,-500.0,0.00011232,2]
[25900,1714330260100,-500.0,0.00011232,2]
[25901,1714330260109,-500.0,0.00011232,2]
[25902,1714330260119,-610.19,0.00011232,2]
[25903,1714330260129,-584.65,0.00011232,2]
[25904,1714330260138,-848.09,0.00011232,2]
[25905,1714330260148,-500.0,0.00011232,2]
[25906,1714330260158,-500.0,0.00011232,2]
[25907,1714330260167,-500.0,0.00011232,2]
[25908,1714330260176,-529.18,0.00011232,2]
[25909,1714330260185,-500.0,0.00011232,2]
[25910,1714330260194,-500.0,0.00011232,2]
[25911,1714330260203,-500.0,0.00011232,2]
[25913,1714330260222,-500.0,0.00011232,2]
[25915,1714330260241,-500.0,0.00011232,2]
[25917,1714330260261,-500.0,0.00011232,2]
[25919,1714330260281,-500.0,0.00011232,2]
[25921,1714330260300,-500.0,0.00011232,2]
[25923,1714330260320,-852.02,0.00011232,2]
[25924,1714330260330,-500.0,0.00011232,2]
[25925,1714330260340,-609.16,0.00011232,2]
[25927,1714330260359,-500.0,0.00011232,2]
[25928,1714330260368,-500.0,0.00011232,2]
[25929,1714330260379,-500.0,0.00011232,2]
[25931,1714330260398,-500.0,0.00011232,2]
[25933,1714330260416,-500.0,0.00011232,2]
[25934,1714330260426,-538.91,0.00011232,2]
[25935,1714330260435,-500.0,0.00011232,2]
[25936,1714330260445,-500.0,0.00011232,2]
[25937,1714330260454,-500.0,0.00011232,2]
[25938,1714330260463,-1399.48,0.00011232,2]
[25939,1714330260472,-512.92,0.00011232,2]
[25940,1714330260481,-500.0,0.00011232,2]
[25941,1714330260491,-503.38,0.00011232,2]
[25942,1714330260501,-676.03,0.00011232,2]
[25943,1714330260510,-500.0,0.00011232,2]
[25944,1714330260520,-596.23,0.00011232,2]
[25945,1714330260529,-500.0,0.00011232,2]
[25946,1714330260538,-500.0,0.00011232,2]
[25947,1714330260547,-1253.88,0.00011232,2]
[25948,1714330260557,-500.0,0.00011232,2]
[25949,1714330260566,-500.0,0.00011232,2]
[25950,1714330260575,-500.0,0.00011232,2]
[25951,1714330260584,-500.0,0.00011232,2]
[25953,1714330260603,-500.0,0.00011232,2]
[25955,1714330260622,-1411.96,0.00011232,2]
[25957,1714330260640,-735.32,0.00011232,2]
[25959,1714330260663,-500.0,0.00011232,2]
[25961,1714330260682,-500.0,0.00011232,2]
[25963,1714330260702,-681.29,0.00011232,2]
[25964,1714330260711,-500.0,0.00011232,2]
[25965,1714330260721,-500.0,0.00011232,2]
[25967,1714330260740,-770.56,0.00011232,2]
[25969,1714330260760,-500.0,0.00011232,2]
[25971,1714330260782,-357.56036632,0.00011232,2]
[25973,1714330260801,-500.0,0.00011232,2]
[25975,1714330260819,-500.0,0.00011232,2]
[25977,1714330260839,-500.0,0.00011232,2]
[25978,1714330260848,-500.0,0.00011232,2]
[25979,1714330260858,-894.51,0.00011232,2]
[25981,1714330260877,-584.59,0.00011232,2]
[25982,1714330260887,-500.0,0.00011232,2]
[25983,1714330260896,-500.0,0.00011232,2]
[25984,1714330260905,-500.0,0.00011232,2]
[25985,1714330260914,-500.0,0.00011232,2]
[25987,1714330260933,-500.0,0.00011232,2]
[25988,1714330260943,-391.72051197,0.00011232,2]
[25989,1714330260953,-500.0,0.00011232,2]
[25991,1714330260972,-500.0,0.00011232,2]
[25993,1714330260992,-500.0,0.00011232,2]
[25995,1714330261013,-1772.81,0.00011232,2]
[25997,1714330261034,-500.0,0.00011232,2]
[25999,1714330261053,-500.0,0.00011232,2]
[26001,1714330261073,-500.0,0.00011232,2]
[26002,1714330261083,-500.0,0.00011232,2]
[26003,1714330261093,-500.0,0.00011232,2]
[26005,1714330261112,-500.0,0.00011232,2]
[26006,1714330261121,-500.0,0.00011232,2]
[26007,1714330261130,-500.0,0.00011232,2]
[26009,1714330261148,-500.0,0.00011232,2]
[26011,1714330261167,-500.0,0.00011232,2]
[26013,1714330261185,-531.75,0.00011232,2]
[26015,1714330261204,-700.67,0.00011232,2]
[26016,1714330261213,-514.87,0.00011232,2]
[26017,1714330261222,-818.4,0.00011232,2]
[26019,1714330261244,-500.0,0.00011232,2]
[26021,1714330261263,-668.62,0.00011232,2]
[26023,1714330261281,-1310.84,0.00011232,2]
[26025,1714330261300,-500.0,0.00011232,2]
[26026,1714330261309,-515.16,0.00011232,2]
[26027,1714330261318,-500.0,0.00011232,2]
[26029,1714330261337,-542.33,0.00011232,2]
[26030,1714330261346,-510.93,0.00011232,2]
[26031,1714330261356,-531.2,0.00011232,2]
[26032,1714330261365,-500.0,0.00011232,2]
[26033,1714330261374,-500.0,0.00011232,2]
[26034,1714330261384,-635.02,0.00011232,2]
[26035,1714330261393,-500.0,0.00011232,2]
[26036,1714330261404,-538.67,0.00011232,2]
[26037,1714330261413,-500.0,0.00011232,2]
[26038,1714330261423,-500.0,0.00011232,2]
[26039,1714330261432,-500.0,0.00011232,2]
[26040,1714330261443,-500.0,0.00011232,2]
[26041,1714330261453,-822.42,0.00011232,2]
[26042,1714330261462,-500.0,0.00011232,2]
[26043,1714330261472,-505.18829373,0.00011232,2]
[26044,1714330261481,-562.77,0.00011232,2]
[26045,1714330261492,-500.0,0.00011232,2]
[26046,1714330261502,-500.0,0.00011232,2]
[26047,1714330261511,-500.0,0.00011232,2]
[26048,1714330261520,-500.0,0.00011232,2]
[26049,1714330261529,-500.0,0.00011232,2]
[26050,1714330261539,-500.0,0.00011232,2]
[26051,1714330261548,-500.0,0.00011232,2]
[26052,1714330261557,-500.0,0.00011232,2]
[26053,1714330261566,-500.0,0.00011232,2]
[26054,1714330261575,-984.05,0.00011232,2]
[26055,1714330261585,-500.0,0.00011232,2]
[26056,1714330261594,-500.0,0.00011232,2]
[26057,1714330261674,-500.0,0.00011232,2]
[26058,1714330261683,-1766.46,0.00011232,2]
[26059,1714330261693,-500.0,0.00011232,2]
[26060,1714330261702,-500.0,0.00011232,2]
[26061,1714330261711,-843.09,0.00011232,2]
[26062,1714330261720,-500.0,0.00011232,2]
[26063,1714330261729,-812.06,0.00011232,2]
[26064,1714330261739,-787.21,0.00011232,2]
[26065,1714330261749,-843.69,0.00011232,2]
[26066,1714330261758,-500.0,0.00011232,2]
[26067,1714330261767,-500.0,0.00011232,2]
[26068,1714330261776,-500.0,0.00011232,2]
[26069,1714330261785,-500.0,0.00011232,2]
[26071,1714330261804,-1542.28,0.00011232,2]
[26073,1714330261822,-500.0,0.00011232,2]
[26074,1714330261831,-500.0,0.00011232,2]
[26075,1714330261840,-662.14,0.00011232,2]
[26077,1714330261859,-3550.13,0.00011232,2]
[26079,1714330261877,-500.0,0.00011232,2]
[26080,1714330261886,-500.0,0.00011232,2]
[26081,1714330261895,-500.0,0.00011232,2]
[26082,1714330261905,-910.91,0.00011232,2]
[26083,1714330261914,-417.7352285,0.00011232,2]
[26084,1714330261923,-501.73937206,0.00011232,2]
[26085,1714330261932,-500.0,0.00011232,2]
[26087,1714330261951,-500.0,0.00011232,2]
[26088,1714330261960,-529.51,0.00011232,2]
[26089,1714330261969,-391.96993915,0.00011232,2]
[26090,1714330261978,-577.6,0.00011232,2]
[26091,1714330261987,-500.0,0.00011232,2]
[26092,1714330261998,-500.0,0.00011232,2]
[26093,1714330262011,-500.0,0.00011232,2]
[26094,1714330262020,-682.07,0.00011232,2]
[26095,1714330262029,-500.0,0.00011232,2]
[26096,1714330262038,-500.0,0.00011232,2]
[26097,1714330262048,-500.0,0.00011232,2]
[26099,1714330262066,-1140.53,0.00011232,2]
[26101,1714330262086,-602.4,0.00011232,2]
[26103,1714330262105,-695.53,0.00011232,2]
[26105,1714330262123,-500.0,0.00011232,2]
[26107,1714330262142,-500.0,0.00011232,2]
[26109,1714330262160,-2964.44,0.00011232,2]
[26111,1714330262179,-842.64,0.00011232,2]
[26113,1714330262198,-500.0,0.00011232,2]
[26115,1714330262217,-562.1,0.00011232,2]
[26117,1714330262236,-722.65,0.00011232,2]
[26119,1714330262257,-620.96,0.00011232,2]
[26121,1714330262276,-500.0,0.00011232,2]
[26123,1714330262297,-500.0,0.00011232,2]
[26125,1714330262315,-4467.12,0.00011232,2]
[26127,1714330262334,-888.23,0.00011232,2]
[26129,1714330262353,-500.0,0.00011232,2]
[26131,1714330262371,-500.0,0.00011232,2]
[26133,1714330262389,-1296.75,0.00011232,2]
[26135,1714330262408,-500.0,0.00011232,2]
[26137,1714330262426,-500.0,0.00011232,2]
[26139,1714330262445,-500.0,0.00011232,2]
[26141,1714330262463,-500.0,0.00011232,2]
[26143,1714330262481,-500.0,0.00011232,2]
[26145,1714330262502,-500.0,0.00011232,2]
[26147,1714330262521,-1022.85,0.00011232,2]
[26149,1714330262539,-500.0,0.00011232,2]
[26151,1714330262561,-806.78,0.00011232,2]
[26153,1714330262580,-500.0,0.00011232,2]
[26155,1714330262599,-500.0,0.00011232,2]
[26157,1714330262617,-202.6,0.00011232,2]
[26159,1714330262635,-500.0,0.00011232,2]
[26161,1714330262653,-500.0,0.00011232,2]
[26163,1714330262672,-8503.81,0.00011232,2]
[26165,1714330262691,-774.85,0.00011232,2]
[26167,1714330262710,-500.0,0.00011232,2]
[26169,1714330262728,-683.75,0.00011232,2]
[26171,1714330262750,-500.0,0.00011232,2]
[26173,1714330262767,-500.0,0.00011232,2]
[26175,1714330262786,-507.24230615,0.00011232,2]
[26177,1714330262803,-500.0,0.00011232,2]
[26179,1714330262823,-6456.44,0.00011232,2]
[26181,1714330262841,-500.0,0.00011232,2]
[26183,1714330262859,-16972.06,0.00011232,2]
[26185,1714330262878,-997.5,0.00011232,2]
[26187,1714330262896,-500.0,0.00011232,2]
[26189,1714330262915,-500.0,0.00011232,2]
[26191,1714330262933,-931.84,0.00011232,2]
[26193,1714330262952,-500.0,0.00011232,2]
[26195,1714330262970,-500.0,0.00011232,2]
[26197,1714330262988,-870.45,0.00011232,2]
[26198,1714330263000,-612.11,0.00011232,2]
[26199,1714330263013,-500.0,0.00011232,2]
[26200,1714330263031,-270.56219143,0.00011232,2]
[26201,1714330263040,-23675.76,0.00011232,2]
[26202,1714330263050,-500.0,0.00011232,2]
[26203,1714330263059,-591.63,0.00011232,2]
[26204,1714330263068,-500.0,0.00011232,2]
[26205,1714330263078,-965.63,0.00011232,2]
[26206,1714330263087,-509.84,0.00011232,2]
[26207,1714330263095,-1316.83,0.00011232,2]
[26209,1714330263114,-1414.09,0.00011232,2]
[26211,1714330263132,-500.0,0.00011232,2]
[26213,1714330263153,-500.0,0.00011232,2]
[26214,1714330263163,-655.6,0.00011232,2]
[26215,1714330263175,-500.0,0.00011232,2]
[26216,1714330263185,-215.16935566,0.00011232,2]
[26217,1714330263195,-500.0,0.00011232,2]
[26218,1714330263204,-704.88,0.00011232,2]
[26219,1714330263215,-500.0,0.00011232,2]
[26220,1714330263224,-500.0,0.00011232,2]
[26221,1714330263233,-500.0,0.00011232,2]
[26223,1714330263254,-500.0,0.00011232,2]
[26225,1714330263272,-825.87,0.00011232,2]
[26227,1714330263290,-6158.42,0.00011232,2]
[26229,1714330263310,-500.0,0.00011232,2]
[26231,1714330263328,-500.0,0.00011232,2]
[26233,1714330263347,-1207.68,0.00011232,2]
[26235,1714330263366,-1438.07,0.00011232,2]
[26237,1714330263384,-500.0,0.00011232,2]
[26239,1714330263403,-500.0,0.00011232,2]
[26241,1714330263421,-957.95,0.00011232,2]
[26243,1714330263438,-500.0,0.00011232,2]
[26245,1714330263456,-233.43805205,0.00011232,2]
[26247,1714330263474,-502.41937764,0.00011232,2]
[26248,1714330263483,-567.44,0.00011232,2]
[26249,1714330263493,-1248.29,0.00011232,2]
[26251,1714330263512,-500.0,0.00011232,2]
[26252,1714330263521,-500.0,0.00011232,2]
[26253,1714330263530,-500.0,0.00011232,2]
[26255,1714330263548,-744.54,0.00011232,2]
[26257,1714330263566,-500.0,0.00011232,2]
[26259,1714330263584,-500.0,0.00011232,2]
[26261,1714330263603,-500.0,0.00011232,2]
[26263,1714330263622,-500.0,0.00011232,2]
[26265,1714330263642,-801.77,0.00011232,2]
[26267,1714330263662,-500.0,0.00011232,2]
[26269,1714330263691,-500.0,0.00011232,2]
[26271,1714330263711,-500.0,0.00011232,2]
[26273,1714330263729,-500.0,0.00011232,2]
[26275,1714330263749,-1103.84,0.00011232,2]
[26277,1714330263767,-500.0,0.00011232,2]
[26279,1714330263785,-989.16,0.00011232,2]
[26281,1714330263804,-3094.17,0.00011232,2]
[26283,1714330263822,-684.87,0.00011232,2]
[26285,1714330263840,-500.0,0.00011232,2]
[26287,1714330263858,-500.0,0.00011232,2]
[26289,1714330263876,-500.0,0.00011232,2]
[26291,1714330263894,-606.44,0.00011232,2]
[26293,1714330263912,-500.0,0.00011232,2]
[26295,1714330263930,-540.93,0.00011232,2]
[26297,1714330263948,-744.03,0.00011232,2]
[26299,1714330263967,-980.3,0.00011232,2]
[26301,1714330263985,-27117.26,0.00011232,2]
[26303,1714330264005,-500.0,0.00011232,2]
[26305,1714330264028,-1152.66,0.00011232,2]
[26307,1714330264048,-500.0,0.00011232,2]
[26309,1714330264069,-500.0,0.00011232,2]
[26311,1714330264092,-1674.46,0.00011232,2]
[26313,1714330264113,-500.0,0.00011232,2]
[26315,1714330264133,-1161.36,0.00011232,2]
[26316,1714330264143,-500.0,0.00011232,2]
[26317,1714330264152,-500.0,0.00011232,2]
[26319,1714330264171,-1809.96,0.00011232,2]
[26321,1714330264191,-1130.58,0.00011232,2]
[26323,1714330264211,-500.0,0.00011232,2]
[26325,1714330264229,-501.03503551,0.00011232,2]
[26327,1714330264248,-500.0,0.00011232,2]
[26329,1714330264268,-500.0,0.00011232,2]
[26331,1714330264286,-560.3,0.00011232,2]
[26333,1714330264304,-500.0,0.00011232,2]
[26335,1714330264324,-500.0,0.00011232,2]
[26337,1714330264343,-500.0,0.00011232,2]
[26339,1714330264362,-1137.44,0.00011232,2]
[26341,1714330264383,-500.0,0.00011232,2]
[26343,1714330264403,-500.0,0.00011232,2]
[26345,1714330264427,-688.87,0.00011232,2]
[26346,1714330264437,-1555.52,0.00011232,2]
[26347,1714330264446,-500.0,0.00011232,2]
[26349,1714330264464,-500.0,0.00011232,2]
[26351,1714330264482,-806.45,0.00011232,2]
[26353,1714330264500,-500.0,0.00011232,2]
[26355,1714330264518,-576.02,0.00011232,2]
[26357,1714330264538,-998.64,0.00011232,2]
[26359,1714330264557,-989.1,0.00011232,2]
[26361,1714330264576,-1246.47,0.00011232,2]
[26363,1714330264595,-500.0,0.00011232,2]
[26365,1714330264612,-500.0,0.00011232,2]
[26367,1714330264630,-1331.56,0.00011232,2]
[26369,1714330264648,-500.0,0.00011232,2]
[26371,1714330264666,-1854.45,0.00011232,2]
[26373,1714330264684,-500.0,0.00011232,2]
[26375,1714330264703,-500.0,0.00011232,2]
[26376,1714330264711,-2492.61,0.00011232,2]
[26377,1714330264720,-500.0,0.00011232,2]
[26379,1714330264738,-860.94,0.00011232,2]
[26381,1714330264757,-500.0,0.00011232,2]
[26383,1714330264776,-500.0,0.00011232,2]
[26385,1714330264794,-599.7,0.00011232,2]
[26386,1714330264803,-500.0,0.00011232,2]
[26387,1714330264812,-511.53,0.00011232,2]
[26388,1714330264821,-500.0,0.00011232,2]
[26389,1714330264830,-500.0,0.00011232,2]
[26390,1714330264839,-461.4706371,0.00011232,2]
[26391,1714330264848,-500.0,0.00011232,2]
[26392,1714330264858,-1106.23,0.00011232,2]
[26393,1714330264867,-1949.27,0.00011232,2]
[26395,1714330264886,-1554.35,0.00011232,2]
[26397,1714330264905,-2035.77,0.00011232,2]
[26399,1714330264924,-823.89,0.00011232,2]
[26401,1714330264942,-500.0,0.00011232,2]
[26403,1714330264960,-215.3803114,0.00011232,2]
[26405,1714330264978,-500.0,0.00011232,2]
[26407,1714330264999,-500.0,0.00011232,2]
[26409,1714330265021,-500.0,0.00011232,2]
[26411,1714330265040,-832.48,0.00011232,2]
[26413,1714330265060,-500.0,0.00011232,2]
[26415,1714330265079,-500.0,0.00011232,2]
[26417,1714330265099,-500.0,0.00011232,2]
[26419,1714330265117,-500.0,0.00011232,2]
[26421,1714330265136,-500.0,0.00011232,2]
[26423,1714330265155,-6992.63,0.00011232,2]
[26425,1714330265173,-2953.08,0.00011232,2]
[26427,1714330265192,-3131.96,0.00011232,2]
[26429,1714330265210,-500.0,0.00011232,2]
[26431,1714330265228,-500.0,0.00011232,2]
[26433,1714330265247,-500.0,0.00011232,2]
[26435,1714330265265,-2573.34,0.00011232,2]
[26437,1714330265284,-500.0,0.00011232,2]
[26438,1714330265294,-500.0,0.00011232,2]
[26439,1714330265304,-500.0,0.00011232,2]
[26441,1714330265324,-500.0,0.00011232,2]
[26443,1714330265342,-1835.25,0.00011232,2]
[26444,1714330265352,-500.0,0.00011232,2]
[26445,1714330265361,-1632.26,0.00011232,2]
[26446,1714330265371,-4086.19,0.00011232,2]
[26447,1714330265380,-771.96,0.00011232,2]
[26448,1714330265390,-717.59,0.00011232,2]
[26449,1714330265399,-502.57104795,0.00011232,2]
[26450,1714330265410,-500.0,0.00011232,2]
[26451,1714330265418,-500.0,0.00011232,2]
[26452,1714330265429,-500.0,0.00011232,2]
[26453,1714330265439,-1187.88,0.00011232,2]
[26454,1714330265449,-1340.05,0.00011232,2]
[26455,1714330265459,-500.0,0.00011232,2]
[26456,1714330265467,-500.0,0.00011232,2]
[26457,1714330265477,-789.62,0.00011232,2]
[26458,1714330265486,-500.0,0.00011232,2]
[26459,1714330265499,-500.0,0.00011232,2]
[26460,1714330265508,-500.0,0.00011232,2]
[26461,1714330265518,-500.0,0.00011232,2]
[26462,1714330265527,-1161.93,0.00011232,2]
[26463,1714330265536,-500.0,0.00011232,2]
[26464,1714330265546,-2677.29,0.00011232,2]
[26465,1714330265555,-500.0,0.00011232,2]
[26467,1714330265574,-699.87,0.00011232,2]
[26469,1714330265594,-500.0,0.00011232,2]
[26471,1714330265614,-500.0,0.00011232,2]
[26473,1714330265633,-500.0,0.00011232,2]
[26475,1714330265654,-500.0,0.00011232,2]
[26476,1714330265664,-512.45,0.00011232,2]
[26477,1714330265673,-756.71,0.00011232,2]
[26479,1714330265692,-500.0,0.00011232,2]
[26481,1714330265711,-1268.89,0.00011232,2]
[26483,1714330265854,-500.0,0.00011232,2]
[26485,1714330265875,-895.36,0.00011232,2]
[26487,1714330265896,-505.90413659,0.00011232,2]
[26489,1714330265916,-1322.88,0.00011232,2]
[26491,1714330265935,-500.0,0.00011232,2]
[26492,1714330265944,-958.48,0.00011232,2]
[26493,1714330265954,-500.0,0.00011232,2]
[26494,1714330265964,-189.11650848,0.00011232,2]
[26495,1714330265974,-416.02749033,0.00011232,2]
[26497,1714330265994,-500.0,0.00011232,2]
[26499,1714330266017,-3573.43,0.00011232,2]
[26500,1714330266026,-16792.48,0.00011232,2]
[26501,1714330266037,-620.34,0.00011232,2]
[26502,1714330266046,-500.0,0.00011232,2]
[26503,1714330266056,-704.01,0.00011232,2]
[26504,1714330266066,-1111.15,0.00011232,2]
[26505,1714330266076,-513.62,0.00011232,2]
[26506,1714330266087,-1109.42,0.00011232,2]
[26507,1714330266097,-165.34976252,0.00011232,2]
[26508,1714330266106,-500.0,0.00011232,2]
[26509,1714330266116,-500.0,0.00011232,2]
[26511,1714330266135,-262.62998763,0.000115,2]
[26513,1714330266155,-500.0,0.00011505,2]
[26515,1714330266174,-594.4,0.00011505,2]
[26517,1714330266193,-594.4,0.00011505,2]
[26519,1714330266213,-500.0,0.00011506,2]
[26521,1714330266232,-500.0,0.00011506,2]
[26523,1714330266254,-468.07017232,0.00011506,2]
[26525,1714330266273,-503.07078175,0.00011506,2]
[26527,1714330266293,-500.0,0.00011506,2]
[26528,1714330266302,-500.0,0.00011506,2]
[26529,1714330266311,-482.9679294,0.00011506,2]
[26531,1714330266331,-500.0,0.00011506,2]
[26532,1714330266341,-500.0,0.00011506,2]
[26533,1714330266351,-500.0,0.00011506,2]
[26534,1714330266361,-651.26,0.00011506,2]
[26535,1714330266370,-500.0,0.00011506,2]
[26536,1714330266380,-500.0,0.00011506,2]
[26537,1714330266390,-500.0,0.00011506,2]
[26539,1714330266410,-500.0,0.00011506,2]
[26541,1714330266429,-500.0,0.00011506,2]
[26543,1714330266448,-500.0,0.00011506,2]
[26545,1714330266467,-507.17,0.00011506,2]
[26547,1714330266490,-219.23171407,0.00011506,2]
[26549,1714330266511,-500.0,0.00011506,2]
[26551,1714330266529,-500.0,0.00011506,2]
[26553,1714330266547,-500.0,0.00011506,2]
[26555,1714330266566,-500.0,0.00011506,2]
[26557,1714330266584,-500.0,0.00011506,2]
[26559,1714330266604,-500.0,0.00011506,2]
[26561,1714330266623,-500.0,0.00011506,2]
[26563,1714330266642,-500.0,0.00011506,2]
[26565,1714330266660,-500.0,0.00011506,2]
[26567,1714330266679,-500.0,0.00011506,2]
[26569,1714330266697,-500.0,0.00011506,2]
[26571,1714330266716,-500.0,0.00011506,2]
[26573,1714330266734,-500.0,0.00011506,2]
[26575,1714330266753,-500.0,0.00011506,2]
[26577,1714330266773,-500.0,0.00011506,2]
[26579,1714330266792,-511.57,0.00011506,2]
[26581,1714330266811,-500.0,0.00011506,2]
[26583,1714330266830,-500.0,0.00011506,2]
[26585,1714330266850,-500.0,0.00011506,2]
[26587,1714330266870,-500.0,0.00011506,2]
[26589,1714330266891,-500.0,0.00011506,2]
[26591,1714330266914,-500.0,0.00011506,2]
[26593,1714330266940,-500.0,0.00011506,2]
[26595,1714330266964,-500.0,0.00011506,2]
[26597,1714330266985,-500.0,0.00011506,2]
[26599,1714330267007,-500.0,0.00011506,2]
[26601,1714330267031,-500.0,0.00011506,2]
[26603,1714330267062,-500.0,0.00011506,2]
[26605,1714330267084,-500.0,0.00011506,2]
[26607,1714330267112,-500.0,0.00011506,2]
[26609,1714330267137,-500.0,0.00011506,2]
[26611,1714330267162,-500.0,0.00011506,2]
[26613,1714330267190,-500.0,0.00011506,2]
[26615,1714330267215,-500.0,0.00011506,2]